bitfinex/quotes_BTCUSD_20250403
["timestamp","ask_amount","ask_price","bid_price","bid_amount"]
[1743704642028,0.83160017,81772.0,81771.0,4e-05]
[1743704642295,0.84382917,81772.0,81771.0,4e-05]
[1743704643366,0.72017814,81772.0,81771.0,4e-05]
[1743704643566,1.89605982,81772.0,81771.0,4e-05]
[1743704643768,1.77316214,81772.0,81771.0,4e-05]
[1743704643970,1.82176214,81772.0,81771.0,4e-05]
[1743704644382,1.51053614,81772.0,81771.0,4e-05]
[1743704644584,1.28797014,81772.0,81771.0,4e-05]
[1743704648176,1.49231099,81772.0,81771.0,4e-05]
[1743704648321,1.61520867,81772.0,81771.0,4e-05]
[1743704648504,1.6509635,81772.0,81771.0,4e-05]
[1743704649966,1.6529635,81772.0,81771.0,4e-05]
[1743704650265,0.696823,81768.0,81767.0,1e-06]
[1743704650469,4.31366165,81768.0,81767.0,1e-06]
[1743704650687,4.35966165,81768.0,81767.0,1e-06]
[1743704651303,0.596883,81749.0,81732.0,0.0472]
[1743704651463,0.596883,81749.0,81721.0,0.047]
[1743704651464,4.30142597,81749.0,81721.0,0.047]
[1743704651630,4.30142597,81749.0,81733.0,0.00382584]
[1743704651831,4.39997586,81749.0,81733.0,0.00382584]
[1743704652344,4.36426682,81749.0,81733.0,0.00382584]
[1743704652911,4.49752276,81749.0,81719.0,0.244741]
[1743704653046,4.37462508,81749.0,81721.0,0.244733]
[1743704653395,4.36008423,81749.0,81724.0,0.012236]
[1743704653548,4.36008423,81749.0,81724.0,0.244725]
[1743704653751,4.36208423,81749.0,81724.0,0.244725]
[1743704653952,0.96564423,81749.0,81724.0,0.244725]
[1743704654189,0.96364423,81749.0,81724.0,0.012236]
[1743704654435,4.36208423,81749.0,81723.0,0.244726]
[1743704654640,4.36608423,81749.0,81723.0,0.244726]
[1743704654834,4.36612423,81749.0,81723.0,0.244726]
[1743704655200,4.35912423,81749.0,81723.0,0.244726]
[1743704655537,4.35912423,81749.0,81722.0,0.256967]
[1743704655538,4.36212423,81749.0,81731.0,0.25694]
[1743704655698,4.36212423,81749.0,81728.0,0.012235]
[1743704655699,3.58109623,81749.0,81732.0,0.0481]
[1743704655906,3.53509623,81749.0,81732.0,0.0481]
[1743704656698,3.65799391,81749.0,81725.0,0.0481]
[1743704656926,3.65799391,81749.0,81720.0,0.0481]
[1743704657105,3.66199391,81749.0,81720.0,0.0481]
[1743704657527,0.244735,81721.0,81720.0,0.0481]
[1743704658047,0.012236,81724.0,81720.0,0.0481]
[1743704658048,0.244729,81723.0,81720.0,0.0481]
[1743704658245,0.244726,81724.0,81720.0,0.0481]
[1743704658469,0.244729,81723.0,81720.0,0.292836]
[1743704658664,0.244735,81721.0,81720.0,0.0481]
[1743704658996,0.244732,81722.0,81720.0,0.04814617]
[1743704659200,0.32222312,81730.0,81720.0,0.06038217]
[1743704659318,0.244714,81728.0,81721.0,0.00475288]
[1743704659535,0.244731,81723.0,81721.0,0.00475288]
[1743704660066,0.244732,81722.0,81721.0,0.00475288]
[1743704660708,0.256968,81722.0,81721.0,0.00475288]
[1743704660911,0.256968,81722.0,81718.0,4e-05]
[1743704660912,0.596978,81719.0,81718.0,4e-05]
[1743704661112,0.71988097,81719.0,81718.0,8.616e-05]
[1743704661266,3.41351997,81719.0,81718.0,8.616e-05]
[1743704661468,3.20595465,81719.0,81718.0,8.616e-05]
[1743704661673,2.87417897,81719.0,81718.0,8.616e-05]
[1743704661872,2.79354697,81719.0,81718.0,8.616e-05]
[1743704662096,2.73508097,81719.0,81718.0,8.616e-05]
[1743704662670,0.257059,81693.0,81692.0,0.00765501]
[1743704662853,0.257059,81693.0,81692.0,0.0077455]
[1743704663077,0.81465,81693.0,81692.0,9.049e-05]
[1743704663399,0.682243,81693.0,81692.0,9.049e-05]
[1743704663964,0.69165228,81693.0,81692.0,9.049e-05]
[1743704664098,0.81337468,81693.0,81692.0,9.049e-05]
[1743704664527,0.69165228,81693.0,81692.0,9.049e-05]
[1743704664729,0.26646828,81693.0,81692.0,9.049e-05]
[1743704664931,0.67154828,81693.0,81692.0,9.049e-05]
[1743704665579,0.26646828,81693.0,81692.0,9.049e-05]
[1743704665913,0.88535028,81693.0,81692.0,9.049e-05]
[1743704666077,0.73142528,81693.0,81692.0,9.049e-05]
[1743704666613,0.67636528,81693.0,81692.0,9.049e-05]
[1743704669661,0.64748228,81693.0,81692.0,9.049e-05]
[1743704669866,0.63524228,81693.0,81692.0,9.049e-05]
[1743704670065,0.48925028,81693.0,81692.0,9.049e-05]
[1743704670725,0.584814,81695.0,81692.0,0.24491249]
[1743704670930,0.244818,81694.0,81692.0,9.049e-05]
[1743704671345,0.244819,81693.0,81692.0,9.049e-05]
[1743704676183,1.035148,81693.0,81692.0,9.049e-05]
[1743704676605,0.840831,81693.0,81692.0,9.049e-05]
[1743704677233,0.96372868,81693.0,81692.0,9.049e-05]
[1743704678041,1.180831,81693.0,81692.0,9.049e-05]
[1743704678467,1.30373397,81693.0,81692.0,9.049e-05]
[1743704687875,0.71996197,81693.0,81692.0,9.049e-05]
[1743704688167,2.38742297,81693.0,81692.0,9.049e-05]
[1743704690909,2.14260397,81693.0,81692.0,9.049e-05]
[1743704691264,2.38742297,81693.0,81692.0,9.049e-05]
[1743704693685,2.38942297,81693.0,81692.0,9.049e-05]
[1743704694188,2.51232065,81693.0,81692.0,9.049e-05]
[1743704694509,2.38942297,81693.0,81692.0,9.049e-05]
[1743704695622,2.43732297,81693.0,81692.0,9.049e-05]
[1743704695845,2.43732297,81693.0,81691.0,0.004]
[1743704695846,0.61160385,81692.0,81691.0,9.05e-05]
[1743704696053,4.32764682,81692.0,81691.0,0.00018098]
[1743704697272,4.32964682,81692.0,81691.0,0.00018098]
[1743704697569,4.4555445,81692.0,81691.0,0.00018098]
[1743704698687,1.0601045,81692.0,81691.0,0.00018098]
[1743704698885,4.4555445,81692.0,81691.0,0.00018098]
[1743704700451,4.4555445,81692.0,81691.0,9.8e-07]
[1743704700658,0.244911,81662.0,81661.0,0.004]
[1743704700856,0.244911,81662.0,81661.0,0.0044636]
[1743704701053,0.741802,81662.0,81661.0,0.0044636]
[1743704701259,0.75396062,81662.0,81661.0,0.0044636]
[1743704701464,0.76620562,81662.0,81661.0,0.0044636]
[1743704701701,0.72945062,81662.0,81661.0,0.0044636]
[1743704702322,0.48453962,81662.0,81661.0,0.0044636]
[1743704702548,0.66711912,81671.0,81661.0,0.0044636]
[1743704702549,0.30998812,81671.0,81664.0,0.012245]
[1743704702687,0.34,81672.0,81669.0,0.012244]
[1743704702890,0.34,81670.0,81666.0,0.012244]
[1743704703059,0.34,81670.0,81665.0,0.244902]
[1743704703060,0.34,81668.0,81665.0,0.244902]
[1743704703259,0.284719,81667.0,81663.0,0.244908]
[1743704703455,0.284719,81667.0,81663.0,0.257153]
[1743704703711,0.379277,81667.0,81664.0,0.244903]
[1743704703863,0.569723,81667.0,81666.0,0.257143]
[1743704704063,0.806863,81667.0,81666.0,0.257143]
[1743704704313,0.806863,81667.0,81665.0,0.045]
[1743704704509,0.806863,81667.0,81657.0,0.244924]
[1743704704510,0.0009986,81678.0,81677.0,0.257109]
[1743704704884,0.584846,81684.0,81681.0,0.244853]
[1743704705091,0.622226,81683.0,81682.0,0.0488]
[1743704705298,0.867074,81683.0,81682.0,0.0488]
[1743704705705,0.879316,81683.0,81682.0,0.0488]
[1743704706699,0.89158138,81683.0,81682.0,0.0488]
[1743704707017,0.86842238,81683.0,81682.0,0.0488]
[1743704707239,0.35226538,81683.0,81682.0,0.0488]
[1743704707653,0.0009981,81694.0,81693.0,0.244819]
[1743704707862,0.0009981,81694.0,81693.0,0.257059]
[1743704708090,0.34,81697.0,81695.0,0.244812]
[1743704708296,0.244825,81691.0,81690.0,0.0492]
[1743704708506,0.34,81695.0,81690.0,0.289028]
[1743704708712,1.136204,81695.0,81690.0,0.0442]
[1743704708914,0.561089,81694.0,81691.0,0.012241]
[1743704709135,0.111969,81693.0,81692.0,0.257063]
[1743704709275,0.25145,81694.0,81692.0,0.257063]
[1743704709476,0.25145,81694.0,81690.0,0.04433866]
[1743704709477,0.496266,81694.0,81690.0,0.04433866]
[1743704709718,0.35221647,81695.0,81694.0,0.01224]
[1743704709719,0.01221647,81695.0,81694.0,0.01224]
[1743704709986,0.34,81699.0,81697.0,0.244806]
[1743704710187,0.34,81699.0,81698.0,0.257044]
[1743704710397,0.30998812,81707.0,81696.0,0.244809]
[1743704710598,0.244783,81705.0,81700.0,0.012239]
[1743704710792,0.244801,81699.0,81695.0,0.25705]
[1743704711051,0.210488,81698.0,81693.0,0.244818]
[1743704711252,0.00244253,81697.0,81690.0,0.00013866]
[1743704711412,0.01224,81696.0,81691.0,0.047]
[1743704711597,0.244818,81694.0,81691.0,0.291822]
[1743704711908,0.243818,81693.0,81692.0,0.257063]
[1743704712116,0.244807,81697.0,81694.0,0.244813]
[1743704712877,0.244813,81695.0,81691.0,0.291822]
[1743704713057,0.273234,81694.0,81692.0,0.244819]
[1743704713263,0.24481,81696.0,81693.0,0.244819]
[1743704713463,0.187547,81695.0,81693.0,0.244819]
[1743704713672,0.187547,81695.0,81694.0,0.244816]
[1743704713880,0.187592,81695.0,81693.0,0.244819]
[1743704714057,0.438912,81695.0,81693.0,0.244819]
[1743704714258,0.23855,81694.0,81693.0,0.244819]
[1743704714580,0.34,81709.0,81706.0,0.257016]
[1743704714805,0.0009965,81710.0,81709.0,0.244771]
[1743704715081,0.584758,81714.0,81709.0,0.257009]
[1743704715082,0.34,81714.0,81709.0,0.257009]
[1743704715300,0.0009944,81726.0,81716.0,0.256987]
[1743704715493,0.244723,81725.0,81721.0,0.244735]
[1743704715638,0.34,81724.0,81721.0,0.244735]
[1743704715841,0.34,81724.0,81723.0,0.244729]
[1743704716395,0.01201823,81725.0,81723.0,0.244729]
[1743704716541,0.01201823,81725.0,81723.0,0.24486766]
[1743704716741,0.34,81729.0,81723.0,0.24486766]
[1743704716967,0.34,81725.0,81723.0,0.24486666]
[1743704717168,0.001,81724.0,81723.0,0.25710266]
[1743704717585,0.002,81724.0,81723.0,0.25710266]
[1743704718116,0.002,81724.0,81723.0,0.30370266]
[1743704718323,0.001,81724.0,81723.0,0.30370266]
[1743704718752,0.244708,81730.0,81726.0,0.244717]
[1743704718960,0.012236,81724.0,81723.0,0.00013866]
[1743704719140,0.570956,81724.0,81723.0,0.00013866]
[1743704719500,0.815682,81724.0,81723.0,0.00013866]
[1743704719905,0.93858497,81724.0,81723.0,0.00013866]
[1743704720744,0.82638797,81724.0,81723.0,0.00013866]
[1743704720965,0.83862397,81724.0,81723.0,0.00013866]
[1743704721802,1.30152165,81724.0,81723.0,0.00013866]
[1743704725262,1.17862397,81724.0,81723.0,0.00013866]
[1743704726977,0.71986497,81724.0,81723.0,0.00013866]
[1743704727181,3.26498797,81724.0,81723.0,0.00013866]
[1743704730885,3.26498797,81724.0,81723.0,0.00017866]
[1743704731816,3.27952882,81724.0,81723.0,6.6e-07]
[1743704732036,0.8573035,81724.0,81723.0,6.6e-07]
[1743704732239,0.9061035,81724.0,81723.0,6.6e-07]
[1743704733057,0.244788,81705.0,81698.0,0.01224]
[1743704733209,0.34,81704.0,81698.0,0.01224]
[1743704733410,0.34,81704.0,81699.0,0.244799]
[1743704733609,0.244795,81701.0,81698.0,0.257043]
[1743704733809,0.244795,81701.0,81698.0,0.244803]
[1743704734153,0.244798,81700.0,81697.0,0.04683883]
[1743704734341,0.244798,81700.0,81698.0,0.244803]
[1743704734549,0.244789,81703.0,81700.0,0.244798]
[1743704734751,0.58478,81706.0,81701.0,0.244792]
[1743704734890,0.34,81704.0,81702.0,0.244789]
[1743704735100,0.244783,81705.0,81703.0,0.244789]
[1743704735299,0.244783,81705.0,81702.0,0.25703]
[1743704735705,0.244783,81705.0,81700.0,0.257034]
[1743704735706,0.244783,81705.0,81700.0,0.012239]
[1743704736062,0.244778,81707.0,81702.0,0.012239]
[1743704736266,0.244778,81707.0,81702.0,0.257028]
[1743704736467,0.24478,81706.0,81702.0,0.257028]
[1743704736876,0.24478,81706.0,81703.0,0.244789]
[1743704737083,0.0482,81734.0,81714.0,0.244756]
[1743704737282,0.025,81747.0,81714.0,0.244756]
[1743704737283,0.012234,81739.0,81714.0,0.256993]
[1743704737536,0.012234,81739.0,81726.0,0.256956]
[1743704737537,0.31908178,81730.0,81726.0,0.256956]
[1743704737707,0.34,81729.0,81726.0,0.256956]
[1743704737908,0.584711,81729.0,81726.0,0.24472]
[1743704738115,0.244711,81729.0,81724.0,0.244725]
[1743704738348,0.244716,81728.0,81724.0,0.244725]
[1743704738700,0.01218376,81728.0,81724.0,0.244725]
[1743704738908,0.30998812,81730.0,81727.0,0.256952]
[1743704739108,0.30998812,81730.0,81728.0,0.294112]
[1743704739332,0.30998812,81730.0,81729.0,0.304346]
[1743704739537,0.244696,81734.0,81729.0,0.304346]
[1743704739836,0.244681,81739.0,81735.0,0.24469]
[1743704740077,0.55565112,81740.0,81734.0,0.244695]
[1743704740286,0.24469,81737.0,81733.0,0.256932]
[1743704740498,0.24469,81737.0,81733.0,0.244698]
[1743704740668,0.24469,81737.0,81733.0,0.244699]
[1743704740865,0.24469,81736.0,81733.0,0.244699]
[1743704741268,0.24469,81736.0,81731.0,0.244705]
[1743704741430,0.24469,81736.0,81732.0,0.2447]
[1743704741625,0.55466712,81740.0,81732.0,0.244693]
[1743704741844,0.244684,81738.0,81734.0,0.244693]
[1743704742046,0.244691,81736.0,81733.0,0.244698]
[1743704742249,0.25677607,81738.0,81733.0,0.244698]
[1743704742581,0.24469,81736.0,81732.0,0.2447]
[1743704743435,0.244687,81737.0,81733.0,0.244697]
[1743704743703,0.24469,81736.0,81732.0,0.2447]
[1743704744088,0.244721,81726.0,81722.0,0.0473]
[1743704744285,0.244723,81725.0,81722.0,0.0473]
[1743704746600,1.008425,81725.0,81722.0,0.0473]
[1743704747034,1.14356397,81725.0,81716.0,0.0461]
[1743704747560,1.14356397,81725.0,81714.0,4e-05]
[1743704750403,0.70196997,81725.0,81716.0,0.244749]
[1743704750627,0.70196997,81725.0,81715.0,0.244751]
[1743704750821,0.70196997,81725.0,81714.0,4e-05]
[1743704751615,0.26722,81725.0,81714.0,0.012277]
[1743704751765,0.346389,81725.0,81720.0,0.012236]
[1743704751965,0.244721,81726.0,81723.0,0.244727]
[1743704752283,0.244716,81728.0,81721.0,0.012236]
[1743704752284,0.150043,81725.0,81722.0,0.012236]
[1743704752482,0.394765,81726.0,81719.0,0.24474]
[1743704752698,0.609892,81725.0,81721.0,0.244734]
[1743704752881,0.571114,81725.0,81719.0,0.244738]
[1743704753086,0.571114,81725.0,81720.0,0.244738]
[1743704753087,0.495505,81725.0,81720.0,0.244738]
[1743704753470,0.495505,81725.0,81722.0,0.244731]
[1743704753669,0.244722,81726.0,81723.0,0.244728]
[1743704753908,0.244723,81725.0,81722.0,0.012236]
[1743704754109,0.452161,81725.0,81721.0,0.244734]
[1743704754331,0.452161,81725.0,81720.0,0.244737]
[1743704754332,0.175683,81725.0,81720.0,0.244737]
[1743704754534,0.114344,81725.0,81720.0,0.244737]
[1743704754729,0.104254,81725.0,81721.0,0.244734]
[1743704754931,0.104254,81726.0,81725.0,0.244723]
[1743704755087,0.34,81729.0,81726.0,0.24472]
[1743704755308,0.244712,81729.0,81726.0,0.24472]
[1743704755512,0.244716,81728.0,81724.0,0.25710083]
[1743704755737,0.244716,81728.0,81725.0,0.012236]
[1743704755934,0.34,81730.0,81729.0,0.244711]
[1743704756107,0.165145,81730.0,81729.0,0.244711]
[1743704756306,0.30998812,81734.0,81730.0,0.244708]
[1743704756307,0.155045,81731.0,81730.0,0.244708]
[1743704756508,0.0242717,81738.0,81732.0,0.256937]
[1743704756691,0.584689,81737.0,81735.0,0.244693]
[1743704756888,0.798377,81736.0,81734.0,0.244694]
[1743704757099,0.512677,81735.0,81732.0,0.256936]
[1743704757301,0.244695,81735.0,81732.0,0.256936]
[1743704757502,0.244696,81734.0,81732.0,0.244701]
[1743704757748,0.3520377,81738.0,81731.0,0.012235]
[1743704757946,0.0120377,81738.0,81737.0,0.256921]
[1743704758171,0.244676,81741.0,81738.0,0.244684]
[1743704758374,0.244678,81740.0,81737.0,0.25692]
[1743704758748,0.244683,81739.0,81736.0,0.244689]
[1743704758954,0.26896005,81741.0,81736.0,0.244687]
[1743704759293,0.200529,81740.0,81735.0,0.256926]
[1743704759438,0.244683,81739.0,81736.0,0.24469]
[1743704759637,0.121011,81738.0,81736.0,0.24469]
[1743704759934,0.365695,81738.0,81735.0,0.256926]
[1743704760156,0.223121,81737.0,81735.0,0.244692]
[1743704760392,0.500082,81739.0,81735.0,0.244692]
[1743704760607,0.417895,81738.0,81734.0,0.012234]
[1743704760799,0.209404,81737.0,81734.0,0.256924]
[1743704761019,0.209404,81737.0,81736.0,0.256924]
[1743704761251,0.34,81742.0,81739.0,0.244679]
[1743704761375,0.34,81742.0,81737.0,0.012234]
[1743704761376,0.430384,81741.0,81738.0,0.244684]
[1743704761571,0.34,81742.0,81741.0,0.244675]
[1743704762043,0.012233,81744.0,81737.0,0.256918]
[1743704762335,0.244681,81739.0,81738.0,0.0478]
[1743704762880,0.39135,81739.0,81738.0,0.0478]
[1743704763078,0.24472,81726.0,81721.0,0.00382604]
[1743704763275,0.256959,81725.0,81721.0,0.00382604]
[1743704763483,0.244723,81725.0,81721.0,0.00382604]
[1743704763872,1.51645097,81725.0,81721.0,0.00382604]
[1743704764278,1.51645097,81725.0,81703.0,0.290886]
[1743704764461,1.51645097,81725.0,81703.0,0.0461]
[1743704764639,1.51645097,81725.0,81705.0,0.24478]
[1743704764842,1.51645097,81725.0,81706.0,0.244774]
[1743704766142,1.51645097,81725.0,81703.0,0.0461]
[1743704766350,1.51645097,81725.0,81706.0,0.24478]
[1743704766526,1.51645097,81725.0,81707.0,0.244774]
[1743704766726,1.51645097,81725.0,81706.0,0.012239]
[1743704767322,1.51645097,81725.0,81703.0,0.0461]
[1743704767323,0.72086197,81725.0,81703.0,0.0461]
[1743704767527,3.94907197,81725.0,81703.0,0.0461]
[1743704767755,3.63905597,81725.0,81703.0,0.0461]
[1743704767957,3.63905597,81725.0,81704.0,0.244784]
[1743704768941,3.63905597,81725.0,81703.0,0.0461]
[1743704768942,3.53755097,81725.0,81711.0,0.244759]
[1743704769146,0.26307997,81725.0,81720.0,0.244737]
[1743704769315,0.408464,81725.0,81720.0,0.244737]
[1743704769516,0.408464,81725.0,81719.0,0.0466]
[1743704769517,0.7607,81725.0,81719.0,0.0466]
[1743704769752,0.162741,81725.0,81722.0,0.256965]
[1743704769924,0.245723,81725.0,81719.0,0.29134]
[1743704770126,0.244723,81725.0,81719.0,0.29134]
[1743704770375,0.30998812,81734.0,81730.0,0.244705]
[1743704770579,0.30998812,81740.0,81735.0,0.012234]
[1743704770732,0.30998812,81740.0,81736.0,0.244689]
[1743704770934,0.30998812,81740.0,81737.0,0.012234]
[1743704771134,0.30998812,81740.0,81736.0,0.244689]
[1743704771135,0.244683,81739.0,81736.0,0.244689]
[1743704771362,0.244683,81739.0,81735.0,0.256926]
[1743704771363,0.244684,81738.0,81735.0,0.256926]
[1743704772307,0.24458183,81739.0,81736.0,0.244688]
[1743704773080,0.24458183,81739.0,81735.0,0.244692]
[1743704773273,0.362255,81738.0,81735.0,0.244692]
[1743704773554,0.362255,81738.0,81635.0,0.06106253]
[1743704773555,0.012235,81729.0,81708.0,0.489547]
[1743704773758,0.244714,81728.0,81723.0,0.012236]
[1743704774065,0.55468612,81734.0,81726.0,0.256955]
[1743704774297,0.244704,81732.0,81728.0,0.244713]
[1743704774473,0.256933,81733.0,81729.0,0.244708]
[1743704774674,0.719392,81732.0,81729.0,0.244708]
[1743704774893,0.719392,81732.0,81730.0,0.244707]
[1743704775060,0.244699,81733.0,81731.0,0.244705]
[1743704775682,0.244699,81733.0,81730.0,0.244707]
[1743704776152,0.244701,81734.0,81730.0,0.244707]
[1743704776353,0.244702,81732.0,81730.0,0.244707]
[1743704776576,0.244701,81733.0,81730.0,0.244707]
[1743704777778,0.244696,81734.0,81731.0,0.244704]
[1743704778026,0.244703,81732.0,81730.0,0.244707]
[1743704778249,0.244703,81732.0,81726.0,0.256954]
[1743704778250,0.256959,81725.0,81721.0,0.244732]
[1743704778441,0.733447,81725.0,81718.0,0.244743]
[1743704778597,0.684337,81725.0,81717.0,0.244746]
[1743704778999,0.684337,81725.0,81716.0,0.244749]
[1743704779230,0.684337,81725.0,81717.0,0.244744]
[1743704779428,0.684337,81725.0,81715.0,0.256988]
[1743704779631,0.684337,81725.0,81717.0,0.244746]
[1743704779836,1.18684033,81725.0,81714.0,4e-05]
[1743704780077,0.1,81715.0,81714.0,4e-05]
[1743704780375,5.28805297,81715.0,81714.0,4e-05]
[1743704780577,5.30259382,81715.0,81714.0,4e-05]
[1743704780978,5.07493933,81715.0,81714.0,4e-05]
[1743704781207,5.21007401,81715.0,81714.0,4e-05]
[1743704781342,5.20860562,81715.0,81714.0,4e-05]
[1743704781523,5.30860562,81715.0,81714.0,4e-05]
[1743704781933,5.28360562,81715.0,81714.0,4e-05]
[1743704782616,5.29773841,81715.0,81714.0,4e-05]
[1743704782954,5.30173841,81715.0,81714.0,4e-05]
[1743704783402,5.44943841,81715.0,81714.0,4e-05]
[1743704783607,5.47943841,81715.0,81714.0,4e-05]
[1743704783828,0.257115,81675.0,81674.0,0.0451]
[1743704784027,0.257115,81675.0,81663.0,0.012245]
[1743704784028,0.244875,81674.0,81670.0,0.244887]
[1743704784233,0.257116,81675.0,81671.0,0.244884]
[1743704784636,0.257116,81675.0,81672.0,0.244881]
[1743704784838,0.244876,81674.0,81671.0,0.244884]
[1743704785038,0.244876,81674.0,81670.0,0.012244]
[1743704785039,0.012245,81662.0,81660.0,0.0485]
[1743704785193,0.012244,81668.0,81661.0,0.0044636]
[1743704785194,0.257154,81664.0,81661.0,0.0044636]
[1743704785395,0.012244,81668.0,81662.0,0.244911]
[1743704785601,0.951589,81667.0,81662.0,0.244911]
[1743704785829,0.012244,81666.0,81662.0,0.244911]
[1743704786061,1.001721,81666.0,81662.0,0.244911]
[1743704786259,0.98948,81665.0,81662.0,0.244911]
[1743704786598,0.012244,81666.0,81661.0,0.0044636]
[1743704786775,0.012245,81662.0,81661.0,0.0044636]
[1743704787536,0.3160097,81662.0,81661.0,0.0044636]
[1743704788011,0.77891267,81662.0,81661.0,0.0044636]
[1743704788353,0.79345352,81662.0,81661.0,0.0044636]
[1743704788955,0.57021852,81662.0,81661.0,0.0044636]
[1743704789327,3.95565852,81662.0,81661.0,0.0044636]
[1743704789661,3.95865852,81662.0,81661.0,0.0044636]
[1743704789867,4.09893852,81662.0,81661.0,0.0044636]
[1743704790069,4.02140882,81662.0,81661.0,0.0044636]
[1743704790484,4.00686797,81662.0,81661.0,0.0044636]
[1743704790943,2.89108697,81662.0,81661.0,0.0044636]
[1743704791252,3.00155397,81662.0,81661.0,0.0044636]
[1743704791454,2.523406,81662.0,81661.0,0.0044636]
[1743704791589,0.003,81662.0,81661.0,0.0044636]
[1743704791794,0.344,81662.0,81661.0,0.0044636]
[1743704791989,0.34,81662.0,81661.0,0.0044636]
[1743704792192,0.352245,81663.0,81661.0,0.0044636]
[1743704792398,0.001,81662.0,81661.0,0.0044636]
[1743704792594,0.102005,81662.0,81661.0,0.0044636]
[1743704792803,0.001,81662.0,81661.0,0.0044636]
[1743704793443,0.001,81662.0,81661.0,0.2493776]
[1743704793686,0.584903,81665.0,81661.0,0.2493776]
[1743704793687,0.34,81665.0,81663.0,0.244908]
[1743704793969,0.00639335,81670.0,81667.0,0.012244]
[1743704794172,0.32223112,81677.0,81671.0,0.257128]
[1743704794345,0.626156,81674.0,81669.0,0.257134]
[1743704794549,0.667157,81673.0,81669.0,0.257134]
[1743704794758,0.584879,81673.0,81669.0,0.257134]
[1743704794964,0.244882,81672.0,81668.0,0.257136]
[1743704795518,0.647216,81671.0,81668.0,0.257136]
[1743704795715,0.244882,81672.0,81668.0,0.257136]
[1743704795911,0.118097,81671.0,81669.0,0.012244]
[1743704796114,0.626788,81674.0,81671.0,0.244884]
[1743704796323,0.142195,81673.0,81671.0,0.244884]
[1743704796501,0.34,81674.0,81673.0,0.257121]
[1743704797210,0.244868,81677.0,81673.0,0.257121]
[1743704797408,0.6095585,81678.0,81674.0,0.244875]
[1743704797581,0.3524495,81678.0,81675.0,0.244872]
[1743704797783,0.34,81678.0,81676.0,0.244867]
[1743704798012,0.34,81678.0,81677.0,0.244866]
[1743704798303,1.302683,81685.0,81682.0,0.24485]
[1743704798304,1.07014272,81685.0,81682.0,0.24485]
[1743704798503,1.32722772,81685.0,81682.0,0.244851]
[1743704798761,0.244878,81673.0,81670.0,0.244886]
[1743704798891,0.012243,81675.0,81670.0,0.012244]
[1743704799093,0.244879,81673.0,81670.0,0.012244]
[1743704799294,0.257117,81675.0,81670.0,0.244886]
[1743704799664,0.24488,81673.0,81669.0,0.257134]
[1743704799781,0.24488,81673.0,81670.0,0.244887]
[1743704799988,0.257123,81673.0,81669.0,0.24489]
[1743704800187,0.244882,81672.0,81669.0,0.24489]
[1743704800961,0.153611,81671.0,81664.0,0.012245]
[1743704801147,0.012244,81670.0,81666.0,0.244899]
[1743704801349,0.012244,81671.0,81665.0,0.012245]
[1743704801591,0.244891,81669.0,81666.0,0.244899]
[1743704801910,0.25713,81671.0,81666.0,0.244899]
[1743704802107,0.244887,81670.0,81666.0,0.244899]
[1743704802728,0.012244,81669.0,81664.0,0.244903]
[1743704802931,0.012244,81668.0,81663.0,0.0485]
[1743704803133,0.244905,81664.0,81663.0,0.0485]
[1743704803741,0.244902,81666.0,81663.0,0.0485]
[1743704803983,0.244911,81662.0,81661.0,0.0044636]
[1743704804189,0.244909,81663.0,81661.0,0.0044636]
[1743704804519,0.257156,81662.0,81661.0,0.0044636]
[1743704804793,1.149727,81662.0,81661.0,0.0044636]
[1743704805159,1.27262997,81662.0,81661.0,0.0044636]
[1743704805356,1.34111081,81662.0,81661.0,0.0044636]
[1743704805576,1.28185133,81662.0,81661.0,0.0044636]
[1743704806170,1.62185133,81662.0,81661.0,0.0044636]
[1743704808354,1.44154403,81662.0,81661.0,0.0044636]
[1743704811394,1.45608488,81662.0,81661.0,0.0044636]
[1743704811528,1.57898256,81662.0,81661.0,0.0044636]
[1743704812359,1.45608488,81662.0,81661.0,0.0044636]
[1743704812553,1.45708488,81662.0,81661.0,0.0044636]
[1743704812759,1.45808488,81662.0,81661.0,0.0044636]
[1743704813375,1.45808488,81662.0,81613.0,0.490114]
[1743704813376,0.245001,81632.0,81627.0,0.0462]
[1743704813573,0.257251,81632.0,81627.0,0.0462]
[1743704813836,0.245001,81632.0,81627.0,0.0462]
[1743704814195,0.245001,81632.0,81631.0,0.00862897]
[1743704814561,0.245001,81632.0,81631.0,0.004]
[1743704814770,0.245001,81632.0,81631.0,0.00413839]
[1743704814943,0.245001,81632.0,81631.0,0.00876736]
[1743704815162,0.245001,81632.0,81631.0,0.00413839]
[1743704815320,0.245001,81632.0,81631.0,0.00876736]
[1743704815515,0.38015397,81632.0,81631.0,0.00413839]
[1743704815790,1.03437797,81632.0,81631.0,0.00413839]
[1743704816017,1.06367397,81632.0,81631.0,0.00413839]
[1743704816381,0.95999201,81632.0,81631.0,0.00413839]
[1743704816623,0.73907001,81632.0,81631.0,0.00413839]
[1743704816975,0.35891604,81632.0,81631.0,0.00413839]
[1743704817279,0.01241304,81632.0,81631.0,0.00413839]
[1743704817480,0.245001,81632.0,81631.0,0.00876736]
[1743704819487,0.430887,81632.0,81631.0,0.00876736]
[1743704819684,0.175786,81632.0,81631.0,0.00876736]
[1743704820068,0.245001,81633.0,81631.0,0.00876736]
[1743704820224,0.472173,81632.0,81631.0,0.00876736]
[1743704820427,0.472173,81632.0,81631.0,0.00413839]
[1743704820703,0.459923,81632.0,81631.0,0.00413839]
[1743704820938,0.459923,81632.0,81631.0,0.00876736]
[1743704821059,0.459923,81632.0,81631.0,0.00413839]
[1743704821250,0.472173,81632.0,81631.0,0.00413839]
[1743704821682,0.375329,81632.0,81631.0,0.00413839]
[1743704822035,0.38930568,81633.0,81631.0,0.00413839]
[1743704822237,0.141582,81632.0,81631.0,0.00876736]
[1743704822395,0.376484,81632.0,81631.0,0.00876736]
[1743704822600,0.131483,81632.0,81631.0,0.00876736]
[1743704822802,0.14430468,81633.0,81631.0,0.00876736]
[1743704822991,0.14430468,81633.0,81631.0,0.25377136]
[1743704823187,0.371838,81632.0,81631.0,0.00876736]